bitfinex-derivatives/quotes_SOLF0:USTF0_20250514
["timestamp","ask_amount","ask_price","bid_price","bid_amount"]
[1747212442096,11.27718269,180.82,180.71,60.88]
[1747212442388,121.72,180.81,180.71,60.88]
[1747212442587,121.72,180.81,180.69,5.4824]
[1747212442588,11.27718269,180.78,180.69,3.6587]
[1747212442790,11.27718269,180.78,180.67,60.88]
[1747212443592,60.84,180.77,180.67,121.72]
[1747212444191,11.27718269,180.86,180.67,121.72]
[1747212444494,121.72,180.85,180.67,121.72]
[1747212444994,5.5302,180.82,180.67,121.72]
[1747212445291,121.72,180.85,180.67,132.7892]
[1747212445593,121.72,180.85,180.67,144.06638269]
[1747212445988,121.72,180.85,180.67,83.22638269]
[1747212446189,121.72,180.85,180.67,132.7892]
[1747212446489,11.27718269,180.83,180.67,132.7892]
[1747212447093,11.33268269,180.87,180.68,11.0684]
[1747212447290,61.85021491,180.86,180.67,132.99718269]
[1747212447589,5.5312,180.79,180.75,5.5321]
[1747212447795,60.84,180.79,180.75,5.5321]
[1747212447987,60.84,180.79,180.67,121.72]
[1747212447988,60.84,180.79,180.67,60.88]
[1747212448185,72.11718269,180.79,180.71,5.5332]
[1747212448397,60.84,180.78,180.67,72.15718269]
[1747212448894,66.3713,180.78,180.75,5.5321]
[1747212449089,60.84,180.78,180.67,72.15718269]
[1747212449991,5.5316,180.77,180.74,5.5324]
[1747212450194,60.84,180.78,180.67,72.15718269]
[1747212450497,60.9,180.81,180.67,72.15718269]
[1747212450698,60.84,180.8,180.67,72.15718269]
[1747212450894,60.84,180.8,180.67,60.88]
[1747212451195,11.27718269,180.79,180.67,60.88]
[1747212451593,11.27718269,180.75,180.67,5.5344]
[1747212451802,121.74,180.74,180.64,1.7533]
[1747212451990,121.74,180.74,180.72,5.5329]
[1747212452195,60.84,180.76,180.68,60.9]
[1747212452500,60.84,180.76,180.74,5.5323]
[1747212452698,60.84,180.76,180.68,60.9]
[1747212452900,60.9,180.83,180.68,60.9]
[1747212453093,60.84,180.82,180.68,60.9]
[1747212453297,60.84,180.82,180.8,5.5306]
[1747212453500,60.84,180.82,180.74,60.9]
[1747212453801,60.82,180.86,180.75,66.2855]
[1747212454101,60.82,180.86,180.76,60.82]
[1747212454296,60.82,180.86,180.75,64.4765]
[1747212454503,60.82,180.86,180.69,478.08]
[1747212454504,11.27718269,180.83,180.71,60.9]
[1747212454703,11.27718269,180.79,180.68,3.5765]
[1747212454899,60.82,180.78,180.68,3.5765]
[1747212455201,60.9,180.77,180.68,3.5765]
[1747212455806,66.352,180.76,180.68,3.5765]
[1747212456113,60.82,180.76,180.68,3.5765]
[1747212456304,60.82,180.76,180.74,5.5323]
[1747212456706,60.82,180.76,180.68,3.5765]
[1747212458611,5.531,180.79,180.68,3.5765]
[1747212458809,60.82,180.78,180.77,5.5315]
[1747212459115,60.82,180.81,180.72,60.9]
[1747212459408,60.82,180.81,180.79,5.5308]
[1747212459805,60.9,180.87,180.82,5.5298]
[1747212460001,60.82,180.86,180.77,60.9]
[1747212461611,60.82,180.86,180.8,5.5304]
[1747212461811,60.82,180.86,180.77,60.9]
[1747212462008,60.82,180.86,180.73,60.8]
[1747212462511,6.94272581,180.83,180.73,60.8]
[1747212462706,60.8,180.82,180.73,60.8]
[1747212462904,60.8,180.81,180.69,62.5765]
[1747212463107,6.94272581,180.79,180.69,60.8]
[1747212463516,5.5317,180.77,180.69,60.8]
[1747212463710,60.8,180.76,180.71,5.5334]
[1747212464214,60.8,180.76,180.69,60.8]
[1747212464516,60.8,180.76,180.72,5.5329]
[1747212464814,60.8,180.76,180.69,60.8]
[1747212465015,60.8,180.77,180.74,5.5324]
[1747212465214,60.8,180.77,180.69,60.8]
[1747212465512,66.3314,180.78,180.69,60.8]
[1747212466204,60.8,180.78,180.69,60.8]
[1747212466609,60.8,180.78,180.73,5.5325]
[1747212466812,5.5318,180.77,180.73,5.5325]
[1747212467114,60.8,180.78,180.72,5.5329]
[1747212467311,60.8,180.78,180.69,60.8]
[1747212467817,5.5324,180.75,180.71,5.5332]
[1747212468112,60.8,180.78,180.69,60.8]
[1747212468316,5.5321,180.76,180.72,5.5328]
[1747212468515,5.5321,180.76,180.69,60.8]
[1747212468710,60.8,180.78,180.71,5.5332]
[1747212468914,5.5327,180.74,180.69,60.8]
[1747212469211,60.8,180.78,180.69,60.8]
[1747212469513,5.5323,180.75,180.69,60.8]
[1747212469820,5.5323,180.75,180.71,5.5333]
[1747212470519,5.5323,180.75,180.72,5.5331]
[1747212470717,60.78,180.78,180.69,60.8]
[1747212471210,0.0802,180.82,180.7,1.8696]
[1747212471415,60.78,180.81,180.7,1.8696]
[1747212471615,66.3104,180.81,180.77,5.5313]
[1747212471809,66.3104,180.81,180.7,1.8696]
[1747212471810,66.3104,180.81,180.74,60.8]
[1747212472009,60.78,180.85,180.74,121.58]
[1747212472206,60.78,180.85,180.83,5.5295]
[1747212472617,60.78,180.85,180.79,60.8]
[1747212473218,5.5286,180.87,180.79,60.8]
[1747212473418,66.3086,180.87,180.79,60.8]
[1747212473719,60.78,180.87,180.79,60.8]
[1747212475119,60.78,180.87,180.76,1.8955]
[1747212475418,375.28755186,180.86,180.66,11.0699]
[1747212475620,0.0578,180.85,180.75,5.532]
[1747212475822,1.01733129,180.85,180.68,1.7756]
[1747212476117,1.01733129,180.85,180.69,1.875]
[1747212476318,0.95953129,180.84,180.69,1.875]
[1747212476621,60.8,180.83,180.69,1.875]
[1747212476814,5.5312,180.79,180.75,5.532]
[1747212477011,0.0578,180.85,180.72,60.8]
[1747212477212,121.56,180.84,180.72,60.8]
[1747212477919,127.0895,180.84,180.72,60.8]
[1747212478219,121.56,180.84,180.72,60.8]
[1747212478421,5.5299,180.83,180.79,5.5308]
[1747212478721,121.56,180.84,180.79,5.5308]
[1747212479024,5.5298,180.83,180.79,5.5308]
[1747212479221,121.56,180.84,180.72,60.8]
[1747212479823,11.28755186,180.81,180.72,60.8]
[1747212480323,11.28755186,180.81,180.74,5.5322]
[1747212480527,5.532,180.76,180.72,60.8]
[1747212480824,60.76,180.76,180.69,1.875]
[1747212481013,5.5337,180.7,180.64,62.6753]
[1747212481625,60.76,180.71,180.64,60.8]
[1747212481827,5.5343,180.69,180.65,5.535]
[1747212482121,60.8,180.68,180.56,60.8]
[1747212482327,5.5366,180.61,180.56,60.8]
[1747212482525,60.76,180.6,180.52,64.4418]
[1747212482817,60.76,180.59,180.52,64.4418]
[1747212483016,60.76,180.59,180.56,5.538]
[1747212483215,60.76,180.59,180.52,62.6753]
[1747212484020,60.76,180.59,180.58,5.5374]
[1747212484325,60.76,180.59,180.52,62.6753]
[1747212485120,60.76,180.59,180.58,5.5374]
[1747212485623,60.76,180.6,180.52,62.6753]
[1747212485823,60.76,180.6,180.59,5.5369]
[1747212487328,60.76,180.62,180.52,123.4353]
[1747212487525,60.76,180.62,180.52,121.56]
[1747212487828,60.76,180.62,180.52,123.3508]
[1747212489723,489.38755186,180.69,180.52,123.3508]
[1747212489930,60.84,180.67,180.52,123.3508]
[1747212491131,60.84,180.67,180.63,5.5356]
[1747212491331,60.84,180.67,180.57,60.84]
[1747212491530,60.84,180.67,180.56,60.84]
[1747212493634,60.84,180.67,180.62,5.5359]
[1747212493938,60.84,180.67,180.56,60.84]
[1747212494726,6.95551597,180.66,180.56,60.84]
[1747212494939,6.95551597,180.66,180.52,62.5508]
[1747212495236,5.5364,180.62,180.57,5.5375]
[1747212495441,60.76,180.61,180.57,5.5375]
[1747212496030,60.76,180.61,180.52,62.5508]
[1747212496533,60.76,180.61,180.5,1.7665]
[1747212496838,6.95551597,180.58,180.45,3.7439]
[1747212497041,60.76,180.57,180.45,3.7439]
[1747212497337,60.76,180.56,180.48,5.5404]
[1747212497637,60.76,180.56,180.48,5.5402]
[1747212497832,60.76,180.56,180.45,3.7439]
[1747212498132,364.0,180.6,180.46,60.76]
[1747212498333,60.76,180.59,180.46,60.76]
[1747212498740,60.76,180.59,180.45,3.7439]
[1747212498945,60.76,180.59,180.46,60.78]
[1747212499241,60.76,180.59,180.55,5.5381]
[1747212499840,60.76,180.59,180.56,5.5378]
[1747212500041,66.2971,180.59,180.46,60.78]
[1747212500236,60.76,180.59,180.46,60.78]
[1747212500837,60.76,180.59,180.56,5.538]
[1747212501140,60.76,180.59,180.46,60.78]
[1747212502035,60.76,180.59,180.56,5.5378]
[1747212502231,60.76,180.59,180.51,60.78]
[1747212502436,60.78,180.59,180.52,1.796]
[1747212503035,60.78,180.59,180.58,5.5372]
[1747212503339,60.78,180.59,180.52,1.796]
[1747212503536,60.78,180.59,180.57,5.5376]
[1747212503946,60.78,180.59,180.52,1.796]
[1747212505839,1.11017557,180.68,180.52,1.796]
[1747212505840,60.78,180.63,180.52,1.796]
[1747212506042,60.78,180.63,180.53,1.8622]
[1747212506241,60.78,180.63,180.62,5.5362]
[1747212506640,60.78,180.64,180.56,60.78]
[1747212506938,11.3991763,180.72,180.56,71.856]
[1747212507139,60.78,180.71,180.56,60.78]
[1747212507336,60.78,180.7,180.68,5.5341]
[1747212508144,60.78,180.7,180.63,60.78]
[1747212508647,60.78,180.7,180.66,5.5347]
[1747212508844,60.78,180.7,180.63,60.78]
[1747212509347,60.78,180.7,180.64,1.7397]
[1747212510445,60.78,180.7,180.63,60.78]
[1747212510745,5.5351,180.66,180.61,1.7223]
[1747212510948,60.78,180.65,180.61,1.7223]
[1747212511848,60.78,180.71,180.66,5.5347]
[1747212512049,5.5342,180.69,180.61,1.7223]
[1747212512348,0.96353518,180.76,180.61,1.7223]
[1747212512349,60.76,180.75,180.69,5.5337]
[1747212512648,11.3133763,180.81,180.64,60.76]
[1747212512944,60.76,180.78,180.65,1.8603]
[1747212513150,60.76,180.77,180.66,60.76]
[1747212513348,60.76,180.79,180.66,60.76]
[1747212513747,60.76,180.82,180.66,72.0733763]
[1747212513949,60.76,180.81,180.66,72.0733763]
[1747212514345,60.76,180.82,180.77,5.5313]
[1747212514649,121.52,180.82,180.77,5.5313]
[1747212514852,121.52,180.82,180.75,60.76]
[1747212514853,127.0503,180.82,180.76,5.5316]
[1747212515041,121.52,180.82,180.76,5.5316]
[1747212515246,121.52,180.82,180.75,60.76]
[1747212515455,5.5304,180.81,180.76,5.5317]
[1747212515656,5.5304,180.81,180.75,60.76]
[1747212515950,5.531,180.79,180.75,66.2921]
[1747212516251,121.52,180.82,180.75,60.76]
[1747212516454,5.5318,180.77,180.75,60.76]
[1747212516646,121.52,180.82,180.75,60.76]
[1747212516945,5.5318,180.77,180.75,60.76]
[1747212517142,60.76,180.77,180.73,1.8875]
[1747212518359,5.5325,180.74,180.73,1.8875]
[1747212519252,5.5323,180.75,180.73,1.8875]
[1747212520353,60.76,180.77,180.73,1.8875]
[1747212521452,5.5319,180.76,180.73,1.8875]
[1747212521757,60.76,180.77,180.73,1.8875]
[1747212522053,5.5325,180.74,180.73,1.8875]
[1747212522955,5.5342,180.69,180.66,60.74]
[1747212523553,60.72,180.73,180.66,60.74]
[1747212523948,60.72,180.73,180.7,5.5334]
[1747212524156,60.72,180.73,180.66,60.74]
[1747212524356,364.0,180.82,180.66,60.74]
[1747212524657,121.44,180.81,180.66,60.74]
[1747212524860,122.40105771,180.81,180.66,60.74]
[1747212525058,0.96105771,180.8,180.66,60.74]
[1747212525258,0.96105771,180.8,180.65,3.5853]
[1747212525454,0.96105771,180.8,180.65,1.7765]
[1747212557475,61.04,180.48,180.45,5.5412]
[1747212558079,61.04,180.48,180.41,60.78]
[1747212591398,60.82,180.42,180.31,60.82]
[1747212591699,61.42,180.41,180.31,60.82]
[1747212592002,61.42,180.41,180.35,5.5443]
[1747212592501,61.42,180.41,180.33,5.5449]
[1747212592795,60.82,180.42,180.33,5.5449]
[1747212593000,60.82,180.42,180.29,61.54]
[1747212593001,61.54,180.41,180.29,61.5]
[1747212593504,61.54,180.4,180.29,61.5]
[1747212594002,5.5436,180.38,180.34,5.5447]
[1747212594301,61.54,180.4,180.29,61.5]
[1747212594496,61.54,180.4,180.37,5.5436]
[1747212594699,479.16,180.47,180.29,72.5924]
[1747212594902,123.02,180.46,180.29,72.5924]
[1747212595098,5.5417,180.44,180.3,61.54]
[1747212595302,123.02,180.46,180.31,11.0912]
[1747212595604,5.5417,180.44,180.31,11.0912]
[1747212595903,123.02,180.46,180.32,11.0908]
[1747212596103,5.542,180.43,180.32,11.0908]
[1747212596503,123.02,180.46,180.3,61.54]
[1747212596703,5.5433,180.39,180.3,61.48]
[1747212597002,61.48,180.4,180.3,61.48]
[1747212597804,61.48,180.4,180.38,5.5434]
[1747212598300,61.48,180.4,180.39,5.5432]
[1747212598502,61.48,180.44,180.34,61.5]
[1747212599704,5.5422,180.43,180.4,5.5428]
[1747212599901,61.48,180.44,180.34,61.5]
[1747212600200,5.5421,180.43,180.34,61.5]
[1747212600406,61.5,180.46,180.34,61.5]
[1747212600607,479.2,180.56,180.36,11.0881]
[1747212600905,61.62,180.55,180.35,61.58]
[1747212601106,61.62,180.55,180.37,11.0875]
[1747212601404,61.62,180.55,180.38,123.1]
[1747212601905,61.62,180.55,180.39,123.06]
[1747212602205,61.62,180.55,180.39,61.5]
[1747212602604,61.58,180.54,180.39,61.5]
[1747212602901,61.78,180.53,180.39,61.5]
[1747212603205,61.5,180.52,180.39,61.5]
[1747212604000,5.5416,180.45,180.4,5.5427]
[1747212604202,61.84,180.44,180.39,61.5]
[1747212605705,67.3819,180.44,180.4,5.5427]
[1747212605908,61.84,180.44,180.39,61.5]
[1747212606103,11.0756,180.57,180.39,61.5]
[1747212606104,61.88,180.48,180.46,5.5409]
[1747212606306,61.88,180.48,180.39,61.5]
[1747212606608,61.88,180.48,180.46,5.5409]
[1747212606810,61.88,180.48,180.39,61.5]
[1747212607507,61.84,180.49,180.39,61.5]
[1747212608209,5.5407,180.48,180.45,5.5413]
[1747212608508,61.84,180.49,180.39,61.5]
[1747212609204,5.5407,180.48,180.39,61.5]
[1747212609414,61.48,180.51,180.39,61.5]
[1747212609602,61.86,180.5,180.39,61.5]
[1747212610308,5.5419,180.44,180.4,5.5427]
[1747212610606,61.48,180.46,180.37,61.48]
[1747212610909,61.86,180.46,180.41,5.5424]
[1747212611204,61.86,180.46,180.37,61.48]
[1747212611409,67.4012,180.46,180.37,61.48]
[1747212611708,61.86,180.46,180.37,61.48]
[1747212612008,5.5415,180.45,180.41,5.5424]
[1747212612209,61.86,180.46,180.37,61.48]
[1747212612711,61.86,180.46,180.39,5.543]
[1747212613210,5.542,180.43,180.39,5.543]
[1747212613503,61.86,180.46,180.37,61.48]
[1747212614109,61.86,180.46,180.41,5.5426]
[1747212614307,61.86,180.46,180.37,61.48]
[1747212614812,5.5418,180.44,180.37,61.48]
[1747212615016,61.86,180.46,180.37,61.48]
[1747212615310,61.86,180.46,180.33,479.2]
[1747212615512,61.86,180.46,180.33,540.96]
[1747212615914,61.86,180.46,180.33,61.76]
[1747212617114,61.86,180.46,180.33,67.305]
[1747212617613,61.86,180.46,180.33,61.76]
[1747212618016,5.5439,180.37,180.33,67.305]
[1747212618216,67.2439,180.37,180.33,67.305]
[1747212618615,5.5443,180.36,180.33,61.76]
[1747212618816,61.7,180.37,180.29,61.76]
[1747212619515,61.78,180.36,180.25,61.78]
[1747212620332,61.7,180.37,180.25,61.78]
[1747212620630,5.5442,180.36,180.32,5.5454]
[1747212620831,61.7,180.37,180.25,61.78]
[1747212621132,67.2441,180.37,180.25,61.78]
[1747212621331,61.7,180.37,180.25,61.78]
[1747212621631,5.5442,180.36,180.33,5.5449]
[1747212621829,61.7,180.37,180.25,61.78]
[1747212622428,61.7,180.37,180.24,479.08]
[1747212622726,0.95633812,180.36,180.23,61.78]
[1747212622929,61.78,180.35,180.23,61.78]
[1747212623129,0.95633812,180.34,180.19,61.78]
[1747212623329,0.95633812,180.34,180.2,5.549]
[1747212623732,0.95633812,180.34,180.19,61.78]
[1747212623930,0.95633812,180.34,180.21,5.5488]
[1747212624232,0.95633812,180.34,180.19,61.78]
[1747212624431,5.5475,180.26,180.21,5.5486]
[1747212624632,61.66,180.25,180.19,61.78]
[1747212624929,5.5478,180.24,180.2,5.5488]
[1747212625132,61.66,180.25,180.19,61.78]
[1747212625536,61.66,180.25,180.15,479.18]
[1747212625829,61.66,180.25,180.16,61.8]
[1747212626127,61.66,180.25,180.06,11.1064]
[1747212626328,61.66,180.25,180.07,602.76]
[1747212626533,61.8,180.24,180.07,541.1]
[1747212626731,61.8,180.24,180.08,61.66]
[1747212627035,61.8,180.24,180.07,541.1]
[1747212627526,0.95602747,180.23,180.07,541.1]
[1747212627728,5.5496,180.19,180.07,541.1]
[1747212627930,61.64,180.18,180.07,541.1]
[1747212628237,67.1897,180.18,180.14,5.5507]
[1747212628428,61.64,180.18,180.07,541.1]
[1747212629438,61.64,180.18,180.15,5.5504]
[1747212629642,61.64,180.18,180.07,541.1]
[1747212629931,843.3,180.29,180.07,541.1]
[1747212630137,123.72,180.28,180.07,541.1]
[1747212630437,0.95532971,180.27,180.07,541.1]
[1747212631033,5.5489,180.21,180.17,5.5498]
[1747212631240,61.84,180.2,180.12,61.82]
[1747212632636,61.84,180.2,180.17,5.5498]
[1747212633027,61.84,180.2,180.12,61.82]
[1747212633227,61.82,180.23,180.12,61.82]
[1747212633635,123.56,180.23,180.12,61.82]
[1747212634137,123.54,180.23,180.12,61.82]
[1747212634737,123.54,180.23,180.2,5.5488]
[1747212635331,123.54,180.23,180.21,5.5487]
[1747212635539,129.0882,180.23,180.12,61.82]
[1747212635835,123.54,180.23,180.12,61.82]
[1747212636235,123.54,180.23,180.11,61.84]
[1747212636436,123.54,180.23,180.09,5.5522]
[1747212636627,0.95583445,180.22,179.98,479.56]
[1747212636827,0.95583445,180.22,179.98,541.4]
[1747212637037,5.5533,180.07,179.98,541.4]
[1747212637233,61.62,180.06,179.98,541.4]
[1747212637634,61.62,180.08,179.98,541.4]
[1747212638138,61.62,180.08,180.07,5.5531]
[1747212638438,61.62,180.08,179.98,541.4]
[1747212638634,61.62,180.08,180.06,5.5532]
[1747212639133,61.62,180.08,179.98,541.4]
[1747212639438,61.62,180.08,179.94,61.84]
[1747212639629,61.62,180.08,180.0,5.555]
[1747212639839,61.62,180.08,179.94,61.84]
[1747212640241,5.5538,180.05,180.0,5.5552]
[1747212640434,61.62,180.08,179.94,61.84]
[1747212641040,61.52,180.07,179.99,61.86]
[1747212641738,67.0731,180.07,180.03,5.5541]
[1747212641938,61.52,180.07,180.03,5.5541]
[1747212642138,61.52,180.07,179.99,61.86]
[1747212643639,61.52,180.07,179.93,61.7]
[1747212643640,61.52,180.07,179.94,61.68]
[1747212643840,5.5543,180.03,179.97,5.5559]
[1747212644040,364.0,180.15,179.94,61.68]
[1747212644236,487.74,180.14,179.94,61.68]
[1747212644535,489.6315,180.14,179.94,61.68]
[1747212645233,11.1027,180.13,179.93,61.68]
[1747212645432,11.1027,180.13,179.99,5.5555]
[1747212645632,11.1027,180.13,179.93,61.68]
[1747212646039,5.5543,180.03,179.96,5.5562]
[1747212646242,67.5743,180.03,179.93,61.68]
[1747212646742,67.5743,180.03,179.95,5.5566]
[1747212647041,67.5743,180.03,179.93,61.68]
[1747212647538,67.5743,180.03,179.94,1.7454]
[1747212647842,62.02,180.03,179.94,1.7454]
[1747212648244,62.02,180.03,179.99,5.5553]
[1747212648838,62.16,180.03,179.94,1.7454]
[1747212649244,62.16,180.03,179.98,61.7]
[1747212649942,62.16,180.03,180.01,5.5547]
[1747212650244,62.26,180.07,179.98,61.7]
[1747212650740,5.5541,180.04,180.0,5.5551]
[1747212651044,62.26,180.07,180.0,5.5551]
[1747212651242,62.26,180.07,179.98,61.7]
[1747212651446,62.26,180.07,179.96,61.7]
[1747212651843,5.5543,180.03,179.96,67.2564]
[1747212652043,61.7,180.05,179.96,5.5564]
[1747212652242,61.7,180.05,179.94,1.7454]
[1747212652443,5.5559,179.98,179.94,7.3023]
[1747212652644,62.32,179.99,179.94,1.7454]
[1747212653048,67.8758,179.99,179.94,1.7454]
[1747212653249,61.7,180.05,179.94,1.7454]
[1747212653449,62.26,180.04,179.94,1.7454]
[1747212653649,5.5546,180.02,179.98,5.5556]
[1747212653855,62.26,180.04,179.94,1.7454]
[1747212654545,62.26,180.04,179.94,3.5955]
[1747212654840,62.26,180.04,179.96,5.5563]
[1747212655149,62.26,180.04,179.94,3.5955]
[1747212655350,5.5552,180.01,179.94,3.5955]
[1747212655751,62.26,180.04,179.94,3.5955]
[1747212656654,364.0,180.03,179.85,61.7]
[1747212656846,364.0,180.03,179.86,5.4141]
[1747212657748,364.0,180.03,179.86,1.7389]
[1747212657947,364.0,180.02,179.8,67.3041]
[1747212658249,0.0751,180.01,179.8,67.3041]
[1747212658450,5.5588,179.89,179.84,5.5599]
[1747212658650,62.9,179.89,179.81,1.8713]
[1747212658955,62.9,179.89,179.86,5.5595]
[1747212659149,62.9,179.89,179.77,480.08]
[1747212659447,62.9,179.89,179.79,1.9077]
[1747212660053,68.4586,179.89,179.79,1.9077]
[1747212660362,62.9,179.89,179.79,1.9077]
[1747212660855,62.9,179.89,179.77,386.70095401]
[1747212661054,28.2014766,179.88,179.87,5.5591]
[1747212661255,28.2014766,179.88,179.82,61.72]
[1747212662555,63.74,179.91,179.86,5.5593]
[1747212662746,63.74,179.91,179.82,61.72]
[1747212663252,63.64,179.94,179.82,61.72]
[1747212663654,63.64,179.94,179.89,5.5586]
[1747212663959,63.64,179.94,179.82,61.72]
[1747212664852,63.64,179.94,179.82,125.38]
[1747212665451,63.64,179.94,179.82,61.72]
[1747212665847,5.5601,179.85,179.82,67.2808]
[1747212666045,63.7,179.88,179.82,61.72]
[1747212666252,63.7,179.88,179.78,5.3787]
[1747212666449,125.48,179.89,179.78,5.3787]
[1747212666756,5.559,179.88,179.78,5.3787]
[1747212667053,125.48,179.89,179.78,5.3787]
[1747212667457,125.48,179.89,179.79,61.74]
[1747212667754,125.48,179.89,179.83,5.5604]
[1747212668155,125.48,179.89,179.79,61.74]
[1747212668356,125.48,179.89,179.78,5.3787]
[1747212668855,5.559,179.88,179.84,5.5599]
[1747212669051,63.94,179.87,179.78,5.3787]
[1747212669356,5.5591,179.88,179.84,5.5599]
[1747212669556,5.5591,179.88,179.8,61.74]
[1747212669757,222.10371702,179.89,179.8,61.74]
[1747212669957,5.5593,179.87,179.84,5.5602]
[1747212670257,222.10371702,179.89,179.8,61.74]
[1747212670558,5.5594,179.87,179.8,61.74]
[1747212670756,63.92,179.89,179.8,61.74]
[1747212671156,158.18371702,179.86,179.8,61.74]
[1747212671848,158.18371702,179.87,179.8,61.74]
[1747212672458,158.18371702,179.87,179.86,5.5596]
[1747212672956,152.42971702,179.87,179.86,5.5596]
[1747212673160,152.42971702,179.89,179.88,5.5589]
[1747212673656,62.47521412,179.89,179.88,5.5589]
[1747212673858,37.08891412,179.89,179.88,5.5589]
[1747212674154,24.09583008,179.89,179.88,67.95774935]
[1747212674356,174.2268905,179.92,179.88,67.95774935]
[1747212674548,174.2268905,179.92,179.88,63.92]
[1747212674748,174.2268905,179.92,179.91,5.558]
[1747212674954,174.2268905,179.92,179.91,69.418]
[1747212675154,65.7165,180.0,179.91,63.86]
[1747212675351,5.5561,179.98,179.91,63.86]
[1747212675648,67.23875065,180.0,179.91,63.86]
[1747212675952,67.23875065,180.0,179.92,5.5576]
[1747212676257,67.23875065,180.0,179.91,63.86]
[1747212676456,67.23875065,180.0,179.87,63.86]
[1747212676960,67.23875065,180.0,179.9,5.5581]
[1747212677559,67.23875065,180.0,179.87,63.86]
[1747212678860,11.1113,179.99,179.83,63.86]
[1747212679161,5.5585,179.9,179.86,5.5594]
[1747212679461,11.1113,179.99,179.83,63.86]
[1747212679462,64.06,179.91,179.83,63.86]
[1747212679955,65.58225065,179.91,179.83,63.86]
[1747212680664,5.5587,179.89,179.85,5.5596]
[1747212680861,1.856,179.92,179.83,63.86]
[1747212681061,3.37825065,179.92,179.83,63.86]
[1747212681261,8.93615065,179.92,179.83,63.86]
[1747212681561,1.52225065,179.92,179.83,63.86]
[1747212681859,5.15135065,179.92,179.83,63.86]
[1747212682061,7.02875065,179.92,179.83,63.86]
[1747212682961,5.5592,179.88,179.84,5.5601]
[1747212683261,7.02875065,179.92,179.83,63.86]
[1747212683559,5.5593,179.87,179.84,5.56]
[1747212683865,64.0,179.88,179.79,480.44]
[1747212684053,5.5607,179.83,179.79,480.44]
[1747212684361,65.52225065,179.88,179.78,63.86]
[1747212684962,65.52225065,179.88,179.78,69.422]
[1747212685260,65.52225065,179.88,179.78,63.86]
[1747212686365,63.84,179.87,179.78,63.86]
[1747212686560,63.84,179.87,179.84,5.56]
[1747212686757,63.84,179.87,179.78,127.7]
[1747212687568,5.5065,179.92,179.78,127.7]
[1747212687863,70.80875065,179.92,179.78,127.7]
[1747212688163,70.80875065,179.92,179.82,5.5605]
[1747212688364,70.80875065,179.92,179.79,63.86]